[Event "XLII Barbera Open 2019"]
[Site "Barbera"]
[Date "2019.07.09"]
[Round "6.1"]
[White "Moskalenko, Viktor"]
[Black "Rios, Cristhian Camilo"]
[Result "0-1"]
[ECO "D31"]
[WhiteElo "2500"]
[BlackElo "2520"]
[Annotator "ChessBase"]
[PlyCount "106"]
[EventDate "2019.07.04"]
[EventType "swiss"]
[EventCountry "ESP"]
[SourceTitle "playchess.com"]
[Source "ChessBase"]
[SourceQuality "1"]
[TimeControl "5400+30"]

1. d4 {[%emt 0:00:00]} d5 {[%emt 0:02:22]} 2. c4 {[%emt 0:00:40]} e6 {[%emt 0:00:48]} 3. Nc3 {[%emt 0:00:15]} Bb4 {[%emt 0:00:47]} 4. e3 {[%emt 0:02:23]} Nf6 {[%emt 0:03:38]} 5. a3 {[%emt 0:01:53]} Bxc3+ {[%emt 0:00:17]} 6. bxc3 {[%emt 0:00:01]} c6 {[%emt 0:00:14]} 7. Bd3 {[%emt 0:00:44]} e5 {[%emt 0:00:18]} 8. dxe5 {[%emt 0:07:18]} dxc4 {[%emt 0:00:23]} 9. exf6 {[%emt 0:15:28]} cxd3 {[%emt 0:06:50]} 10. fxg7 {[%emt 0:22:58]} Rg8 {[%emt 0:00:17]} 11. Qf3 {[%emt 0:17:23]} Rxg7 {[%emt 0:11:47]} 12. Nh3 {[%emt 0:00:23]} Bxh3 {[%emt 0:11:01]} 13. Qxh3 {[%emt 0:04:53]} Qd7 {[%emt 0:02:54]} 14. Rb1 {[%emt 0:05:26]} Qxh3 {[%emt 0:06:42]} 15. gxh3 {[%emt 0:00:01]} Nd7 {[%emt 0:00:24]} 16. Rxb7 {[%emt 0:01:49]} Ne5 {[%emt 0:01:23]} 17. e4 {[%emt 0:08:44]} d2+ {[%emt 0:08:24]} 18. Bxd2 {[%emt 0:00:38]} Nf3+ {[%emt 0:00:09]} 19. Ke2 {[%emt 0:00:21]} Nxd2 {[%emt 0:00:12]} 20. Rb4 {[%emt 0:05:35]} a5 {[%emt 0:01:00]} 21. Ra4 {[%emt 0:00:34]} Nb3 {[%emt 0:00:22]} 22. Rb1 {[%emt 0:00:15]} Rb8 {[%emt 0:00:27]} 23. Ke3 {[%emt 0:00:11]} Rg5 {[%emt 0:00:23]} 24. Rc4 {[%emt 0:01:02]} Rb6 {[%emt 0:02:53]} 25. Rd1 {[%emt 0:02:10]} Rh5 {[%emt 0:01:06]} 26. Rd6 {[%emt 0:00:42]} Rxh3+ {[%emt 0:02:54]} 27. f3 {[%emt 0:00:01]} Rxh2 {[%emt 0:00:30]} 28. Rdxc6 {[%emt 0:00:02]} Rxc6 {[%emt 0:00:26]} 29. Rxc6 {[%emt 0:00:01]} Ra2 {[%emt 0:00:36]} 30. Rh6 {[%emt 0:01:02]} Rxa3 {[%emt 0:00:51]} 31. Rxh7 {[%emt 0:00:02]} a4 {[%emt 0:00:15]} 32. Rh8+ {[%emt 0:00:12]} Ke7 {[%emt 0:00:08]} 33. Ra8 {[%emt 0:00:22]} Ra1 {[%emt 0:00:07]} 34. Kd3 {[%emt 0:00:14]} a3 {[%emt 0:01:55]} 35. Kc2 {[%emt 0:00:16]} Nc5 {[%emt 0:01:41]} 36. c4 {[%emt 0:00:14]} a2 {[%emt 0:00:33]} 37. Kb2 {[%emt 0:01:43]} Rf1 {[%emt 0:00:22]} 38. Rxa2 {[%emt 0:00:46]} Rxf3 {[%emt 0:00:24]} 39. Ra5 {[%emt 0:00:08]} Kd6 {[%emt 0:02:18]} 40. e5+ {[%emt 0:00:25]} Kc6 {[%emt 0:00:10]} 41. Ra8 {[%emt 0:00:26]} Nd3+ {[%emt 0:00:09]} 42. Kc3 {[%emt 0:00:01]} Nxe5+ {[%emt 0:01:03]} 43. Kd4 {[%emt 0:00:01]} Nd7 {[%emt 0:00:27]} 44. Ra6+ {[%emt 0:02:27]} Kb7 {[%emt 0:00:09]} 45. Rh6 {[%emt 0:00:59]} Rf4+ {[%emt 0:00:49]} 46. Kd5 {[%emt 0:00:29]} Nb6+ {[%emt 0:00:12]} 47. Ke5 {[%emt 0:00:55]} Rxc4 {[%emt 0:00:21]} 48. Rh7 {[%emt 0:00:37]} Rc7 {[%emt 0:00:10]} 49. Rg7 {[%emt 0:00:43]} Kc6 {[%emt 0:00:30]} 50. Rg8 {[%emt 0:00:31]} Nd5 {[%emt 0:00:43]} 51. Rf8 {[%emt 0:00:33]} Re7+ {[%emt 0:00:26]} 52. Kf5 {[%emt 0:00:16]} Kd7 {[%emt 0:00:32]} 53. Ra8 {[%emt 0:00:09]} Re6 0-1

[Event "XLII Barbera Open 2019"]
[Site "Barbera"]
[Date "2019.07.09"]
[Round "6.2"]
[White "Morales, Jhon Alexander"]
[Black "Peralta, Fernando"]
[Result "0-1"]
[ECO "C07"]
[WhiteElo "2422"]
[BlackElo "2562"]
[Annotator "ChessBase"]
[PlyCount "66"]
[EventDate "2019.07.04"]
[EventType "swiss"]
[EventCountry "ESP"]
[SourceTitle "playchess.com"]
[Source "ChessBase"]
[SourceQuality "1"]
[TimeControl "5400+30"]

1. e4 {[%emt 0:07:22]} e6 {[%emt 0:00:00]} 2. d4 {[%emt 0:02:40]} d5 {[%emt 0:00:00]} 3. Nd2 {[%emt 0:00:17]} c5 {[%emt 0:00:46]} 4. Ngf3 {[%emt 0:00:26]} cxd4 {[%emt 0:00:43]} 5. Nxd4 {[%emt 0:00:44]} Nc6 {[%emt 0:00:16]} 6. Nxc6 {[%emt 0:00:25]} bxc6 {[%emt 0:00:07]} 7. Bd3 {[%emt 0:00:10]} Nf6 {[%emt 0:03:27]} 8. Qe2 {[%emt 0:07:17]} Be7 {[%emt 0:00:49]} 9. O-O {[%emt 0:05:37]} O-O {[%emt 0:00:18]} 10. c4 {[%emt 0:00:19]} a5 {[%emt 0:03:33]} 11. b3 {[%emt 0:03:28]} a4 {[%emt 0:04:12]} 12. Rb1 {[%emt 0:04:52]} axb3 {[%emt 0:10:55]} 13. axb3 {[%emt 0:00:07]} Bb7 {[%emt 0:00:06]} 14. e5 {[%emt 0:10:30]} Nd7 {[%emt 0:01:00]} 15. Nf3 c5 {[%emt 0:06:59]} 16. Re1 {[%emt 0:11:07]} d4 {[%emt 0:07:02]} 17. Be4 {[%emt 0:13:54]} Qc7 {[%emt 0:14:07]} 18. Bg5 {[%emt 0:07:05]} Bxg5 {[%emt 0:05:52]} 19. Nxg5 {[%emt 0:04:49]} h6 {[%emt 0:00:27]} 20. Bxb7 {[%emt 0:04:32]} Qxb7 {[%emt 0:00:10]} 21. Ne4 {[%emt 0:00:07]} Qc6 {[%emt 0:12:46]} 22. Nd6 {[%emt 0:01:20]} f6 {[%emt 0:05:13]} 23. f4 {[%emt 0:05:28]} fxe5 {[%emt 0:02:16]} 24. fxe5 {[%emt 0:00:06]} Rad8 {[%emt 0:06:35]} 25. Qg4 {[%emt 0:04:39]} Nxe5 {[%emt 0:02:20]} 26. Qxe6+ {[%emt 0:00:08]} Kh7 {[%emt 0:06:37]} 27. Qxe5 {[%emt 0:00:12]} Rxd6 {[%emt 0:00:20]} 28. Qe4+ {[%emt 0:01:44]} Qxe4 {[%emt 0:01:06]} 29. Rxe4 {[%emt 0:00:06]} Rb8 {[%emt 0:01:55]} 30. Re5 {[%emt 0:01:26]} d3 {[%emt 0:01:45]} 31. Rxc5 {[%emt 0:00:27]} d2 {[%emt 0:00:31]} 32. Rd5 {[%emt 0:02:57]} Rxd5 {[%emt 0:01:11]} 33. cxd5 {[%emt 0:00:06]} Rc8 {[%emt 0:00:16]} 0-1

[Event "XLII Barbera Open 2019"]
[Site "Barbera"]
[Date "2019.07.09"]
[Round "6.3"]
[White "Oliva Castaneda, Kevel"]
[Black "Sturt, Raven"]
[Result "1/2-1/2"]
[ECO "A13"]
[WhiteElo "2467"]
[BlackElo "2429"]
[Annotator "ChessBase"]
[PlyCount "105"]
[EventDate "2019.07.04"]
[EventType "swiss"]
[EventCountry "ESP"]
[SourceTitle "playchess.com"]
[Source "ChessBase"]
[SourceQuality "1"]
[TimeControl "5400+30"]

1. c4 {[%emt 0:00:00]} Nf6 {[%emt 0:00:00]} 2. Nf3 {[%emt 0:00:03]} e6 {[%emt 0:00:02]} 3. g3 {[%emt 0:00:09]} d5 {[%emt 0:00:06]} 4. Bg2 {[%emt 0:00:05]} dxc4 {[%emt 0:00:56]} 5. Qa4+ {[%emt 0:00:12]} Bd7 {[%emt 0:00:21]} 6. Qxc4 {[%emt 0:00:08]} c5 {[%emt 0:00:07]} 7. Ne5 {[%emt 0:00:19]} Qc8 {[%emt 0:00:29]} 8. Qd3 {[%emt 0:00:16]} Nc6 {[%emt 0:00:07]} 9. Nxd7 {[%emt 0:00:04]} Nxd7 {[%emt 0:00:05]} 10. Qb5 {[%emt 0:00:07]} Nd4 {[%emt 0:00:08]} 11. Qa4 {[%emt 0:00:13]} Be7 {[%emt 0:00:26]} 12. Nc3 {[%emt 0:00:30]} O-O {[%emt 0:04:07]} 13. d3 {[%emt 0:01:34]} c4 {[%emt 0:19:03]} 14. O-O {[%emt 0:04:15]} Nb6 {[%emt 0:01:26]} 15. Qd1 {[%emt 0:01:43]} Rd8 {[%emt 0:00:25]} 16. e3 {[%emt 0:11:21]} Nc6 {[%emt 0:03:18]} 17. d4 {[%emt 0:00:06]} Nb4 {[%emt 0:01:55]} 18. b3 {[%emt 0:03:45]} e5 {[%emt 0:03:10]} 19. d5 {[%emt 0:04:21]} Qc5 {[%emt 0:16:08]} 20. e4 {[%emt 0:13:54]} Qd4 {[%emt 0:05:08]} 21. Bd2 {[%emt 0:04:03]} cxb3 {[%emt 0:08:20]} 22. axb3 {[%emt 0:00:10]} Nd7 {[%emt 0:00:15]} 23. Re1 {[%emt 0:10:53]} Rac8 {[%emt 0:10:51]} 24. Nb5 {[%emt 0:10:00]} Qb6 {[%emt 0:00:12]} 25. d6 {[%emt 0:00:14]} Bxd6 {[%emt 0:00:22]} 26. Nxd6 {[%emt 0:00:07]} Qxd6 {[%emt 0:00:16]} 27. Bg5 {[%emt 0:00:43]} Qxd1 {[%emt 0:00:22]} 28. Rexd1 {[%emt 0:00:04]} f6 {[%emt 0:00:12]} 29. Bh3 fxg5 {[%emt 0:21:44]} 30. Bxd7 {[%emt 0:01:25]} Ra8 {[%emt 0:00:08]} 31. Be6+ {[%emt 0:00:08]} Kf8 {[%emt 0:00:04]} 32. Rxd8+ {[%emt 0:00:03]} Rxd8 {[%emt 0:00:02]} 33. Rxa7 {[%emt 0:00:06]} Rb8 {[%emt 0:00:09]} 34. Ra4 {[%emt 0:05:25]} Nc6 {[%emt 0:00:38]} 35. Bd5 {[%emt 0:00:16]} Ke7 {[%emt 0:00:15]} 36. Kg2 {[%emt 0:00:54]} Kd6 {[%emt 0:00:30]} 37. Bxc6 {[%emt 0:03:05]} bxc6 {[%emt 0:00:03]} 38. Ra7 {[%emt 0:01:55]} Rxb3 {[%emt 0:00:13]} 39. Rxg7 {[%emt 0:00:06]} c5 {[%emt 0:01:23]} 40. Rxh7 {[%emt 0:01:24]} c4 {[%emt 0:00:00]} 41. Rh8 {[%emt 0:02:34]} Kc5 {[%emt 0:00:35]} 42. h4 {[%emt 0:01:08]} gxh4 {[%emt 0:02:36]} 43. gxh4 Kd4 {[%emt 0:01:07]} 44. h5 {[%emt 0:01:15]} Kxe4 {[%emt 0:00:19]} 45. h6 {[%emt 0:00:42]} Kf5 46. Rc8 {[%emt 0:02:40]} Kg6 {[%emt 0:01:34]} 47. Rc6+ {[%emt 0:00:57]} Kh7 {[%emt 0:00:04]} 48. Rxc4 Kxh6 49. Rc5 {[%emt 0:01:57]} Kg5 {[%emt 0:01:04]} 50. Rxe5+ {[%emt 0:00:05]} Kf4 51. Rh5 {[%emt 0:01:23]} Kg4 {[%emt 0:00:15]} 52. Rh8 {[%emt 0:00:05]} Rb2 {[%emt 0:00:06]} 53. Rg8+ 1/2-1/2

[Event "XLII Barbera Open 2019"]
[Site "Barbera"]
[Date "2019.07.09"]
[Round "6.4"]
[White "Sreeshwan Maralakshikari"]
[Black "Valenzuela Gomez, Fernando"]
[Result "0-1"]
[ECO "E61"]
[WhiteElo "2461"]
[BlackElo "2394"]
[Annotator "ChessBase"]
[PlyCount "94"]
[EventDate "2019.07.04"]
[EventType "swiss"]
[EventCountry "ESP"]
[SourceTitle "playchess.com"]
[Source "ChessBase"]
[SourceQuality "1"]
[TimeControl "5400+30"]

1. d4 {[%emt 0:02:41]} Nf6 {[%emt 0:00:00]} 2. c4 {[%emt 0:00:05]} g6 {[%emt 0:00:00]} 3. Nc3 {[%emt 0:00:13]} Bg7 {[%emt 0:00:00]} 4. Nf3 {[%emt 0:00:05]} O-O {[%emt 0:00:49]} 5. e4 {[%emt 0:00:05]} d6 {[%emt 0:00:19]} 6. h3 {[%emt 0:00:05]} Na6 {[%emt 0:00:21]} 7. Be3 {[%emt 0:00:09]} c6 {[%emt 0:00:30]} 8. g4 {[%emt 0:00:39]} d5 {[%emt 0:01:58]} 9. e5 {[%emt 0:10:59]} Ne4 {[%emt 0:00:46]} 10. Bd3 {[%emt 0:00:09]} Nxc3 {[%emt 0:01:06]} 11. bxc3 {[%emt 0:00:08]} dxc4 {[%emt 0:02:23]} 12. Bxc4 {[%emt 0:00:06]} Nc7 {[%emt 0:12:05]} 13. Bb3 {[%emt 0:02:46]} b5 {[%emt 0:04:45]} 14. Ng5 {[%emt 0:21:28]} Nd5 {[%emt 0:14:15]} 15. Ne4 {[%emt 0:24:50]} Kh8 {[%emt 0:07:12]} 16. h4 {[%emt 0:02:21]} f5 {[%emt 0:08:07]} 17. Ng5 {[%emt 0:10:22]} h6 {[%emt 0:06:57]} 18. h5 {[%emt 0:05:43]} e6 {[%emt 0:11:50]} 19. Bd2 {[%emt 0:03:11]} hxg5 {[%emt 0:07:12]} 20. hxg6+ {[%emt 0:00:07]} Kg8 {[%emt 0:00:08]} 21. gxf5 {[%emt 0:00:07]} Rxf5 {[%emt 0:00:32]} 22. Rh7 {[%emt 0:00:12]} Nf4 {[%emt 0:03:54]} 23. Qg4 {[%emt 0:04:40]} Nxg6 {[%emt 0:02:43]} 24. Qxf5 {[%emt 0:00:30]} Kxh7 25. Qe4 Bd7 {[%emt 0:01:42]} 26. O-O-O {[%emt 0:02:54]} Bh6 {[%emt 0:01:41]} 27. Rg1 Qe7 {[%emt 0:06:53]} 28. f4 {[%emt 0:07:39]} Be8 {[%emt 0:00:54]} 29. fxg5 {[%emt 0:00:32]} Bg7 {[%emt 0:00:34]} 30. Qg4 {[%emt 0:00:59]} Bf7 {[%emt 0:00:41]} 31. Qh5+ {[%emt 0:00:32]} Kg8 {[%emt 0:00:02]} 32. Bc2 {[%emt 0:00:12]} Qe8 {[%emt 0:01:08]} 33. Rf1 {[%emt 0:01:18]} Nf8 {[%emt 0:00:57]} 34. g6 {[%emt 0:00:08]} Bxg6 {[%emt 0:01:07]} 35. Rxf8+ {[%emt 0:00:10]} Qxf8 {[%emt 0:01:18]} 36. Bxg6 {[%emt 0:00:23]} Qf1+ {[%emt 0:00:49]} 37. Kc2 {[%emt 0:00:05]} Kf8 {[%emt 0:01:24]} 38. Bh6 {[%emt 0:01:47]} Qg2+ {[%emt 0:00:49]} 39. Kb3 {[%emt 0:00:10]} Qd5+ {[%emt 0:00:57]} 40. Ka3 {[%emt 0:00:36]} Qd7 {[%emt 0:00:25]} 41. Bg5 {[%emt 0:00:40]} b4+ {[%emt 0:00:29]} 42. cxb4 {[%emt 0:00:25]} a5 {[%emt 0:00:21]} 43. b5 {[%emt 0:00:30]} Rb8 {[%emt 0:00:40]} 44. Qf3+ {[%emt 0:00:12]} Kg8 {[%emt 0:00:02]} 45. Qxc6 {[%emt 0:00:33]} Bf8+ {[%emt 0:00:07]} 46. Ka4 {[%emt 0:00:36]} Qxd4+ {[%emt 0:00:22]} 47. Kxa5 {[%emt 0:00:04]} Qb4+ {[%emt 0:00:41]} 0-1

[Event "XLII Barbera Open 2019"]
[Site "Barbera"]
[Date "2019.07.09"]
[Round "6.5"]
[White "Harutyunian, Tigran K."]
[Black "Volkov, Dmitry V"]
[Result "1-0"]
[ECO "E63"]
[WhiteElo "2539"]
[BlackElo "2199"]
[Annotator "ChessBase"]
[PlyCount "63"]
[EventDate "2019.07.04"]
[EventType "swiss"]
[EventCountry "ESP"]
[SourceTitle "playchess.com"]
[Source "ChessBase"]
[SourceQuality "1"]
[TimeControl "5400+30"]

1. d4 {[%emt 0:00:00]} Nf6 {[%emt 0:00:00]} 2. Nf3 {[%emt 0:00:00]} g6 {[%emt 0:00:00]} 3. c4 {[%emt 0:00:00]} Bg7 {[%emt 0:00:00]} 4. g3 {[%emt 0:00:00]} d6 {[%emt 0:00:00]} 5. Bg2 {[%emt 0:00:02]} O-O {[%emt 0:00:00]} 6. Nc3 {[%emt 0:00:04]} Nc6 {[%emt 0:00:02]} 7. O-O {[%emt 0:00:10]} a6 {[%emt 0:00:04]} 8. Re1 {[%emt 0:00:15]} Rb8 {[%emt 0:00:16]} 9. Rb1 {[%emt 0:00:09]} b5 {[%emt 0:10:55]} 10. cxb5 {[%emt 0:00:08]} axb5 {[%emt 0:00:04]} 11. b4 {[%emt 0:00:06]} e5 {[%emt 0:05:48]} 12. dxe5 {[%emt 0:01:25]} Nxe5 {[%emt 0:00:38]} 13. Nxe5 {[%emt 0:00:17]} dxe5 {[%emt 0:00:13]} 14. Be3 {[%emt 0:00:19]} Bb7 {[%emt 0:03:59]} 15. Ba7 {[%emt 0:06:27]} Ra8 {[%emt 0:01:15]} 16. Bxb7 {[%emt 0:02:39]} Rxa7 {[%emt 0:00:13]} 17. Qxd8 {[%emt 0:01:12]} Rxd8 {[%emt 0:00:18]} 18. Bc6 {[%emt 0:00:04]} Ne8 {[%emt 0:05:43]} 19. Nxb5 {[%emt 0:04:42]} Rxa2 {[%emt 0:00:19]} 20. Bxe8 {[%emt 0:00:09]} Rxe8 {[%emt 0:00:03]} 21. Nxc7 {[%emt 0:00:07]} Rb8 {[%emt 0:00:48]} 22. e4 {[%emt 0:06:07]} Bf8 {[%emt 0:03:39]} 23. Nd5 {[%emt 0:00:17]} Rd2 {[%emt 0:03:53]} 24. Rec1 {[%emt 0:01:43]} Ra8 {[%emt 0:01:50]} 25. b5 {[%emt 0:04:35]} Raa2 {[%emt 0:00:37]} 26. Nc3 Rab2 {[%emt 0:00:51]} 27. Rxb2 {[%emt 0:01:41]} Rxb2 {[%emt 0:00:13]} 28. Rb1 {[%emt 0:00:04]} Rxb1+ {[%emt 0:00:38]} 29. Nxb1 {[%emt 0:00:07]} Bb4 {[%emt 0:02:41]} 30. b6 {[%emt 0:01:18]} Kf8 {[%emt 0:00:15]} 31. Nc3 {[%emt 0:00:13]} Ke8 {[%emt 0:01:11]} 32. Nb5 {[%emt 0:00:19]} 1-0

[Event "XLII Barbera Open 2019"]
[Site "Barbera"]
[Date "2019.07.09"]
[Round "6.6"]
[White "Lopez Gonzalez, Abel Fabian"]
[Black "Munoz, Miguel"]
[Result "0-1"]
[ECO "B01"]
[WhiteElo "2355"]
[BlackElo "2511"]
[Annotator "ChessBase"]
[PlyCount "106"]
[EventDate "2019.07.04"]
[EventType "swiss"]
[EventCountry "ESP"]
[SourceTitle "playchess.com"]
[Source "ChessBase"]
[SourceQuality "1"]
[TimeControl "5400+30"]

1. e4 {[%emt 0:00:17]} d5 {[%emt 0:06:10]} 2. exd5 {[%emt 0:00:09]} Qxd5 {[%emt 0:00:10]} 3. Nc3 {[%emt 0:00:08]} Qa5 {[%emt 0:00:08]} 4. d4 {[%emt 0:00:09]} Nf6 {[%emt 0:00:05]} 5. Bc4 {[%emt 0:00:11]} Bg4 {[%emt 0:01:01]} 6. Nge2 {[%emt 0:00:14]} Nc6 {[%emt 0:00:47]} 7. Bd2 {[%emt 0:01:14]} Bxe2 {[%emt 0:00:58]} 8. Nxe2 {[%emt 0:08:55]} Qh5 {[%emt 0:04:59]} 9. c3 {[%emt 0:02:25]} O-O-O {[%emt 0:00:47]} 10. Ng3 {[%emt 0:25:39]} Qxd1+ {[%emt 0:07:32]} 11. Rxd1 {[%emt 0:00:00]} e5 12. Bxf7 exd4 {[%emt 0:00:07]} 13. O-O {[%emt 0:01:42]} Bc5 {[%emt 0:06:23]} 14. cxd4 {[%emt 0:20:10]} Nxd4 {[%emt 0:07:07]} 15. Be3 {[%emt 0:04:54]} Rd7 {[%emt 0:01:01]} 16. Bc4 {[%emt 0:08:50]} Rhd8 {[%emt 0:01:10]} 17. Ne2 Nxe2+ {[%emt 0:04:56]} 18. Bxe2 {[%emt 0:00:31]} Bxe3 {[%emt 0:00:38]} 19. fxe3 Re8 20. Rxd7 {[%emt 0:01:47]} Kxd7 21. Rd1+ {[%emt 0:03:17]} Ke6 {[%emt 0:07:35]} 22. Rd4 {[%emt 0:00:47]} c5 {[%emt 0:03:11]} 23. Rd3 Re7 {[%emt 0:04:55]} 24. Bf3 {[%emt 0:05:44]} Rc7 {[%emt 0:03:49]} 25. Kf2 {[%emt 0:02:09]} Ke5 {[%emt 0:02:13]} 26. Rd8 c4 27. Ra8 {[%emt 0:05:30]} b6 {[%emt 0:13:07]} 28. Ke2 {[%emt 0:03:47]} Kd6 {[%emt 0:04:29]} 29. Kd2 {[%emt 0:01:05]} Kc5 {[%emt 0:00:55]} 30. Ke2 {[%emt 0:00:21]} Kb4 {[%emt 0:02:08]} 31. e4 a5 {[%emt 0:07:46]} 32. Ke3 {[%emt 0:01:25]} Nd7 {[%emt 0:00:30]} 33. Kf4 {[%emt 0:04:08]} Nc5 {[%emt 0:00:54]} 34. Ke5 Rd7 {[%emt 0:03:49]} 35. Rb8 {[%emt 0:00:44]} Kb5 36. a4+ {[%emt 0:00:56]} Nxa4 {[%emt 0:00:45]} 37. Bg4 {[%emt 0:00:33]} Rd2 {[%emt 0:05:42]} 38. Kf4 {[%emt 0:00:37]} Rd4 {[%emt 0:00:16]} 39. Ke3 {[%emt 0:00:28]} Rd3+ 40. Ke2 Nxb2 {[%emt 0:00:54]} 41. e5 {[%emt 0:00:36]} Rd5 {[%emt 0:00:28]} 42. Re8 Nd3 {[%emt 0:00:27]} 43. e6 {[%emt 0:00:32]} Re5+ {[%emt 0:00:31]} 44. Kd2 {[%emt 0:00:35]} h5 {[%emt 0:02:27]} 45. Bf3 {[%emt 0:01:01]} Nf4 {[%emt 0:00:20]} 46. e7 Ng6 47. Rg8 {[%emt 0:01:13]} Rxe7 {[%emt 0:00:45]} 48. Bxh5 {[%emt 0:00:02]} Nf4 49. Bf3 {[%emt 0:00:13]} Kb4 {[%emt 0:00:54]} 50. Rb8 {[%emt 0:00:13]} b5 {[%emt 0:00:19]} 51. Bc6 {[%emt 0:00:55]} Re5 52. h4 {[%emt 0:00:27]} c3+ {[%emt 0:01:25]} 53. Kd1 c2+ {[%emt 0:00:28]} 0-1

[Event "XLII Barbera Open 2019"]
[Site "Barbera"]
[Date "2019.07.09"]
[Round "6.7"]
[White "Leon Valdes, Jony Wilson"]
[Black "Berdayes Ason, Dylan Isidro"]
[Result "0-1"]
[ECO "A50"]
[WhiteElo "2364"]
[BlackElo "2461"]
[Annotator "ChessBase"]
[PlyCount "74"]
[EventDate "2019.07.04"]
[EventType "swiss"]
[EventCountry "ESP"]
[SourceTitle "playchess.com"]
[Source "ChessBase"]
[SourceQuality "1"]
[TimeControl "5400+30"]

1. d4 Nf6 {[%emt 0:01:19]} 2. c4 {[%emt 0:00:33]} g6 {[%emt 0:00:02]} 3. f3 {[%emt 0:00:04]} c5 {[%emt 0:00:38]} 4. d5 {[%emt 0:01:14]} b5 {[%emt 0:00:39]} 5. cxb5 {[%emt 0:00:37]} a6 {[%emt 0:00:16]} 6. b6 {[%emt 0:01:33]} Bg7 {[%emt 0:02:33]} 7. Nc3 {[%emt 0:00:54]} O-O {[%emt 0:01:09]} 8. e4 {[%emt 0:00:21]} d6 {[%emt 0:04:50]} 9. a4 {[%emt 0:04:34]} a5 {[%emt 0:03:06]} 10. Qb3 {[%emt 0:04:37]} Ba6 {[%emt 0:04:23]} 11. b7 {[%emt 0:04:48]} Ra7 {[%emt 0:00:02]} 12. Bxa6 {[%emt 0:00:07]} Nxa6 {[%emt 0:00:56]} 13. Nge2 {[%emt 0:01:43]} Qb8 {[%emt 0:01:49]} 14. O-O {[%emt 0:08:14]} Nc7 {[%emt 0:02:57]} 15. Nb5 {[%emt 0:03:21]} Nxb5 {[%emt 0:00:07]} 16. axb5 {[%emt 0:00:06]} Qxb7 {[%emt 0:01:00]} 17. Nc3 {[%emt 0:02:54]} Rb8 {[%emt 0:03:46]} 18. Bd2 {[%emt 0:18:43]} Ne8 {[%emt 0:01:51]} 19. Ra3 {[%emt 0:03:52]} Bd4+ {[%emt 0:17:52]} 20. Kh1 {[%emt 0:00:04]} Nc7 {[%emt 0:00:06]} 21. Qc4 {[%emt 0:04:23]} Nxb5 {[%emt 0:15:21]} 22. Rb3 {[%emt 0:01:06]} Bxc3 {[%emt 0:00:02]} 23. bxc3 {[%emt 0:00:09]} a4 {[%emt 0:00:05]} 24. Rb2 {[%emt 0:04:37]} a3 {[%emt 0:11:23]} 25. Rb3 {[%emt 0:00:07]} Qa6 {[%emt 0:00:15]} 26. Ra1 {[%emt 0:03:43]} Rb6 {[%emt 0:02:46]} 27. h3 {[%emt 0:11:19]} Qa4 {[%emt 0:07:57]} 28. Qxa4 {[%emt 0:00:27]} Rxa4 {[%emt 0:00:02]} 29. Ra2 {[%emt 0:01:57]} c4 {[%emt 0:01:13]} 30. Rb4 {[%emt 0:02:03]} Rxb4 {[%emt 0:00:04]} 31. cxb4 {[%emt 0:00:05]} Ra6 {[%emt 0:00:32]} 32. Kg1 {[%emt 0:05:03]} c3 {[%emt 0:00:25]} 33. Bc1 {[%emt 0:00:07]} Ra4 {[%emt 0:00:06]} 34. Kf2 {[%emt 0:01:03]} Rxb4 {[%emt 0:00:13]} 35. Ke3 {[%emt 0:00:04]} Rb1 {[%emt 0:00:00]} 36. Rxa3 {[%emt 0:02:12]} Nxa3 {[%emt 0:00:46]} 37. Bxa3 {[%emt 0:00:04]} Ra1 {[%emt 0:00:11]} 0-1

[Event "XLII Barbera Open 2019"]
[Site "Barbera"]
[Date "2019.07.09"]
[Round "6.8"]
[White "Ortega Serra, Marc"]
[Black "Perez Mitjans, Orelvis"]
[Result "0-1"]
[ECO "D02"]
[WhiteElo "2329"]
[BlackElo "2416"]
[Annotator "NA"]
[PlyCount "70"]
[EventDate "2019.07.04"]
[EventType "swiss"]
[EventCountry "ESP"]
[SourceTitle "playchess.com"]
[Source "ChessBase"]
[SourceQuality "1"]
[TimeControl "5400+30"]

1. d4 {[%emt 0:01:36]} d5 {[%emt 0:00:00]} 2. Nf3 {[%emt 0:00:15]} Nc6 {[%emt 0:00:00]} 3. g3 {[%emt 0:00:42]} Bf5 {[%emt 0:00:11]} 4. Bg2 {[%emt 0:00:38]} Nb4 {[%emt 0:00:14]} 5. Na3 {[%emt 0:00:11]} e6 {[%emt 0:00:15]} 6. O-O {[%emt 0:00:54]} Be7 {[%emt 0:00:37]} 7. c4 {[%emt 0:01:27]} c6 {[%emt 0:00:36]} 8. Bd2 {[%emt 0:01:52]} a5 {[%emt 0:02:13]} 9. c5 {[%emt 0:00:19]} Nf6 {[%emt 0:05:47]} 10. Qb3 {[%emt 0:02:05]} Nd7 {[%emt 0:00:13]} 11. Rac1 {[%emt 0:06:38]} b6 {[%emt 0:01:49]} 12. cxb6 {[%emt 0:10:51]} a4 {[%emt 0:12:21]} 13. Qd1 {[%emt 0:06:02]} Qxb6 {[%emt 0:00:08]} 14. Bxb4 {[%emt 0:00:16]} Qxb4 {[%emt 0:00:20]} 15. Qd2 {[%emt 0:05:05]} Qb7 {[%emt 0:01:47]} 16. Qc3 {[%emt 0:04:45]} Ra6 {[%emt 0:00:18]} 17. Nh4 {[%emt 0:02:51]} Bxh4 {[%emt 0:03:11]} 18. gxh4 {[%emt 0:00:01]} O-O {[%emt 0:00:09]} 19. f3 {[%emt 0:03:15]} Nf6 {[%emt 0:05:11]} 20. Rfe1 {[%emt 0:03:17]} Bg6 {[%emt 0:06:47]} 21. e4 {[%emt 0:01:00]} Nh5 {[%emt 0:00:24]} 22. Qd2 {[%emt 0:00:13]} Qe7 {[%emt 0:00:08]} 23. Qg5 {[%emt 0:03:26]} Qb4 {[%emt 0:00:24]} 24. Qe3 {[%emt 0:00:02]} Rb6 {[%emt 0:03:25]} 25. f4 Nf6 {[%emt 0:03:11]} 26. f5 {[%emt 0:14:20]} exf5 {[%emt 0:00:41]} 27. exd5 {[%emt 0:00:02]} cxd5 {[%emt 0:01:20]} 28. Bf3 {[%emt 0:02:00]} h5 {[%emt 0:02:31]} 29. Nc2 Qxb2 {[%emt 0:24:36]} 30. Qf4 {[%emt 0:08:17]} Rc8 {[%emt 0:02:19]} 31. Na1 {[%emt 0:02:59]} Rxc1 {[%emt 0:00:25]} 32. Rxc1 {[%emt 0:00:08]} Qxa2 {[%emt 0:03:32]} 33. Rc8+ {[%emt 0:01:01]} Kh7 {[%emt 0:00:05]} 34. Nc2 {[%emt 0:00:05]} Qb1+ {[%emt 0:01:27]} 35. Kg2 {[%emt 0:01:23]} Rb2 {[%emt 0:00:10]} 0-1